bitfinex-derivatives/quotes_ETHF0:USTF0_20250410
["timestamp","ask_amount","ask_price","bid_price","bid_amount"]
[1744260370529,4.70326,1616.3,1616.2,6.23794]
[1744260370826,3.4654,1616.3,1616.2,6.23794]
[1744260371021,4.70326,1616.3,1616.2,6.23794]
[1744260371215,3.4654,1616.3,1616.2,6.23794]
[1744260372626,4.70326,1616.3,1616.2,6.23794]
[1744260373221,0.00928591,1616.4,1616.3,1.23786]
[1744260373428,0.00928591,1616.4,1616.3,4.75686]
[1744260373628,5.91e-06,1616.4,1616.3,12.96466]
[1744260373828,5.91e-06,1616.4,1616.3,17.96223913]
[1744260374324,5.91e-06,1616.4,1616.3,22.96223913]
[1744260374626,8.11701826,1616.9,1616.8,1.23748]
[1744260374827,12.06955422,1617.1,1617.0,1.23732]
[1744260375430,12.06955422,1617.1,1617.0,42.03732]
[1744260375621,12.06955422,1617.1,1617.0,43.69042]
[1744260375822,12.06955422,1617.1,1617.0,47.03732]
[1744260376125,12.06955422,1617.1,1617.0,48.69042]
[1744260379535,1.73928591,1617.2,1617.1,1.23725]
[1744260379734,0.00928591,1617.2,1617.1,2.95195]
[1744260380331,1.63548591,1617.2,1617.1,2.95195]
[1744260380728,2.87265591,1617.2,1617.1,6.23725]
[1744260381536,11.08045591,1617.2,1617.1,5.0]
[1744260382034,1.23725,1617.1,1617.0,4.99757913]
[1744260382230,3.3776,1617.1,1616.8,1.23741]
[1744260382531,3.2078,1617.0,1616.7,1.23752]
[1744260382723,1.23754,1616.8,1616.7,1.23752]
[1744260382926,3.4391,1616.9,1616.6,3.2078]
[1744260383128,1.23754,1616.8,1616.7,1.23752]
[1744260383327,2.93434,1616.8,1616.7,42.03752]
[1744260383525,6.14214,1616.8,1616.7,42.03752]
[1744260383729,11.14214,1616.8,1616.7,40.8]
[1744260383920,11.14214,1616.8,1616.7,42.03755]
[1744260385129,1.6968,1616.8,1616.7,42.03755]
[1744260385738,1.7423,1616.9,1616.8,1.23748]
[1744260386033,1.7423,1616.9,1616.8,2.86088]
[1744260386233,1.7259,1617.0,1616.9,1.2374]
[1744260386434,3.4635,1617.0,1616.9,1.2374]
[1744260387135,4.70082,1617.0,1616.9,1.2374]
[1744260387836,3.4635,1617.0,1616.9,1.2374]
[1744260388028,4.70082,1617.0,1616.9,1.2374]
[1744260388224,3.4635,1617.0,1616.9,1.2374]
[1744260390038,3.4635,1617.0,1616.9,2.9828]
[1744260391337,3.4635,1617.0,1616.9,7.9828]
[1744260392842,3.4635,1617.0,1616.9,6.2374]
[1744260393939,1.7259,1617.0,1616.9,7.9978]
[1744260394140,4.8886,1617.1,1617.0,1.23732]
[1744260394336,6.6113,1617.1,1617.0,1.23732]
[1744260394837,7.84855,1617.1,1617.0,1.23732]
[1744260395436,6.6113,1617.1,1617.0,1.23732]
[1744260395939,4.64075,1617.1,1617.0,1.23732]
[1744260396338,3.4035,1617.1,1617.0,1.23732]
[1744260396540,4.64075,1617.1,1617.0,1.23732]
[1744260397338,3.4035,1617.1,1617.0,1.23732]
[1744260400039,4.64075,1617.1,1617.0,1.23732]
[1744260400235,3.4035,1617.1,1617.0,1.23732]
[1744260401335,4.64075,1617.1,1617.0,1.23732]
[1744260403237,3.4035,1617.1,1617.0,1.23732]
[1744260403632,3.4035,1617.1,1617.0,2.86372]
[1744260404246,4.64075,1617.1,1617.0,2.86372]
[1744260404740,0.00928591,1617.2,1617.1,1.23725]
[1744260404947,0.00928591,1617.2,1617.1,2.86365]
[1744260406745,1.69658591,1617.2,1617.1,2.86365]
[1744260406948,1.69658591,1617.2,1617.1,7.86365]
[1744260407847,2.93375591,1617.2,1617.1,6.23725]
[1744260409245,2.93375591,1617.2,1617.1,1.23725]
[1744260409644,1.23732,1617.1,1617.0,1.23725]
[1744260409843,1.24650591,1617.2,1617.1,1.23725]
[1744260410351,2.96520591,1617.2,1617.1,3.00815]
[1744260410542,2.96520591,1617.2,1617.1,1.23725]
[1744260411547,1.72798591,1617.2,1617.1,1.23725]
[1744260411944,1.72798591,1617.2,1617.1,4.72785]
[1744260412939,0.00928591,1617.2,1617.1,4.72785]
[1744260414139,0.00928591,1617.2,1617.1,1.23725]
[1744260414643,1.69818591,1617.2,1617.1,1.23725]
[1744260414844,1.69818591,1617.2,1617.1,2.95875]
[1744260415137,2.93535591,1617.2,1617.1,1.23725]
[1744260415951,1.69818591,1617.2,1617.1,1.23725]
[1744260416750,1.69818591,1617.2,1617.1,2.82845]
[1744260417346,0.00928591,1617.2,1617.1,2.82845]
[1744260417851,1.61198591,1617.2,1617.1,2.82845]
[1744260418447,0.00928591,1617.2,1617.1,7.82845]
[1744260419753,4.8006,1617.5,1617.4,1.23702]
[1744260420552,4.8006,1617.5,1617.4,2.81912]
[1744260421150,4.8006,1617.5,1617.4,7.81912]
[1744260422147,1.54368591,1617.6,1617.4,7.81912]
[1744260422347,0.00928591,1617.6,1617.5,2.83324]
[1744260422552,0.00928591,1617.6,1617.5,9.38464]
[1744260422752,0.00928591,1617.6,1617.5,14.38464]
[1744260423158,0.00928591,1617.6,1617.5,9.38464]
[1744260423452,0.00928591,1617.6,1617.5,14.38464]
[1744260423660,5.91e-06,1617.6,1617.5,19.8510213]
[1744260423864,8.28262705,1617.7,1617.6,1.23686]
[1744260424054,3.21457971,1617.7,1617.6,2.75966]
[1744260424260,9.68956422,1617.9,1617.8,1.23671]
[1744260424456,7.48910422,1617.9,1617.8,18.83608913]
[1744260424759,5.19523422,1617.9,1617.8,18.83608913]
[1744260424965,5.19523422,1617.9,1617.8,48.58568913]
[1744260425158,6.43187422,1617.9,1617.8,42.3514]
[1744260425357,8.40353422,1617.9,1617.8,47.03671]
[1744260425862,9.64017422,1617.9,1617.8,45.8]
[1744260426257,8.40353422,1617.9,1617.8,47.03671]
[1744260426660,8.40353422,1617.9,1617.8,42.03671]
[1744260427265,5.19523422,1617.9,1617.8,47.03428913]
[1744260427562,0.00928591,1618.0,1617.9,1.23664]
[1744260427858,0.00928591,1618.0,1617.9,10.30294]
[1744260428058,0.00928591,1618.0,1617.9,13.68894]
[1744260428270,0.00928591,1618.0,1617.9,9.29594]
[1744260428763,2.90894591,1618.0,1617.9,6.23664]
[1744260428965,1.67238591,1618.0,1617.9,6.23664]
[1744260429671,1.67238591,1618.0,1617.9,7.78964]
[1744260433068,0.00928591,1618.0,1617.9,9.38224]
[1744260433273,0.00928591,1618.0,1617.9,14.38224]
[1744260434374,5.91e-06,1618.0,1617.9,14.38224]
[1744260434674,1.23609,1618.7,1618.6,1.2361]
[1744260434872,5.86989,1618.7,1618.6,1.2361]
[1744260435074,10.86989,1618.7,1618.6,1.2361]
[1744260435572,4.6338,1618.7,1618.6,1.2361]
[1744260435775,5.86982,1618.7,1618.6,1.2361]
[1744260436273,4.6338,1618.7,1618.6,1.2361]
[1744260436578,0.00918195,1618.8,1618.7,1.23602]
[1744260436967,1.68478195,1618.8,1618.7,2.77502]
[1744260437170,0.00918195,1618.8,1618.7,9.26602]
[1744260438079,0.00918195,1618.8,1618.7,14.26359913]
[1744260438781,0.00918195,1618.8,1618.7,55.06359913]
[1744260438983,0.00918195,1618.8,1618.7,60.06359913]
[1744260438984,1.95e-06,1618.8,1618.7,60.06359913]
[1744260439886,1.95e-06,1618.8,1618.7,55.06359913]
[1744260440969,1.95e-06,1618.8,1618.7,60.06359913]
[1744260441774,3.01408235,1619.2,1619.1,1.23572]
[1744260441975,1.525,1619.5,1619.4,1.23549]
[1744260442182,1.525,1619.5,1619.4,5.62649]
[1744260442378,1.525,1619.5,1619.4,46.42649]
[1744260442576,1.603,1619.7,1619.6,1.23534]
[1744260442877,3.2078,1620.0,1619.9,1.23511]
[1744260443076,14.43259759,1620.1,1620.0,1.23503]
[1744260443281,14.43259759,1620.1,1620.0,4.44283]
[1744260443476,1.23503,1620.0,1619.6,3.08831]
[1744260443678,1.5894,1620.0,1619.6,9.2558]
[1744260443876,1.5894,1620.0,1619.7,1.658]
[1744260444089,1.5894,1620.0,1619.9,1.23511]
[1744260444293,14.43259759,1620.1,1620.0,1.23503]
[1744260444790,14.43259759,1620.1,1620.0,5.62503]
[1744260444998,4.7972,1620.2,1620.1,1.23496]
[1744260445290,9.7972,1620.2,1620.1,1.23496]
[1744260445485,6.5894,1620.2,1620.1,1.23496]
[1744260445683,1.5894,1620.2,1620.1,1.23496]
[1744260446592,3.2568,1620.2,1620.1,1.23496]
[1744260449285,8.2568,1620.2,1620.1,1.23496]
[1744260449490,11.4646,1620.2,1619.9,5.62305]
[1744260449685,1.5245,1620.1,1619.9,5.62311]
[1744260449886,1.5245,1620.1,1620.0,1.23503]
[1744260450293,1.5894,1620.2,1620.1,1.23496]
[1744260450489,3.1139,1620.2,1620.1,1.23496]
[1744260451496,4.34878,1620.2,1620.1,1.23496]
[1744260451889,3.1139,1620.2,1620.1,1.23496]
[1744260452085,4.34878,1620.2,1620.1,1.23496]
[1744260452393,4.34878,1620.2,1619.8,6.29574]
[1744260452394,1.23499,1620.1,1620.0,1.23497]
[1744260452587,1.23509,1620.0,1619.9,1.23506]
[1744260452793,1.23518,1619.8,1619.7,7.20624]
[1744260453099,2.85053,1619.9,1619.8,1.23518]
[1744260453304,1.6154,1619.9,1619.8,1.23518]
[1744260454495,1.23518,1619.8,1619.7,5.0]
[1744260454695,4.28418,1619.8,1619.7,5.0]
[1744260454893,4.28418,1619.8,1619.5,1.24468591]
[1744260454894,1.23534,1619.6,1619.5,1.24468591]
[1744260455094,6.23534,1619.6,1619.5,0.00928591]
[1744260455490,7.91844,1619.6,1619.5,0.00928591]
[1744260455797,7.91844,1619.6,1619.5,1.24469591]
[1744260455999,7.91844,1619.6,1619.5,0.00928591]
[1744260456395,7.91844,1619.6,1619.5,1.24469591]
[1744260456593,2.91844,1619.6,1619.5,1.24469591]
[1744260459000,7.91844,1619.6,1619.5,0.00928591]
[1744260459499,1.6831,1619.6,1619.5,1.24469591]
[1744260459695,2.91844,1619.6,1619.5,1.24469591]
[1744260460196,1.6831,1619.6,1619.5,1.24469591]
[1744260460799,2.91844,1619.6,1619.5,1.24469591]
[1744260463301,2.91844,1619.6,1619.5,0.00928591]
[1744260463602,2.91844,1619.6,1619.5,1.24469591]
[1744260465305,1.6831,1619.6,1619.5,1.24469591]
[1744260465493,4.44311,1619.7,1619.6,1.23534]
[1744260465695,6.06881,1619.7,1619.6,1.23534]
[1744260466404,3.2078,1619.7,1619.6,6.23534]
[1744260466704,3.2078,1619.7,1619.6,7.77974]
[1744260466903,3.2078,1619.7,1619.6,12.77974]
[1744260468300,3.2078,1619.7,1619.6,7.77974]
[1744260468796,5.83399409,1619.9,1619.8,1.23518]
[1744260469001,7.06910409,1619.9,1619.8,1.23518]
[1744260469201,5.83399409,1619.9,1619.8,1.23518]
[1744260469403,2.84066,1620.0,1619.9,1.23511]
[1744260470096,1.6056,1620.0,1619.9,2.91821]
[1744260470297,2.84063,1620.0,1619.9,2.91821]
[1744260470713,3.2078,1620.1,1620.0,1.23503]
[1744260470902,1.5528,1620.2,1620.1,1.23496]
[1744260471099,3.2078,1620.3,1620.2,1.23488]
[1744260471297,4.4426,1620.3,1620.2,1.23488]
[1744260471704,4.4426,1620.3,1620.2,2.91798]
[1744260472008,1.23496,1620.1,1620.0,5.61902]
[1744260472203,1.23503,1620.0,1619.9,2.91818]
[1744260472408,3.2078,1620.1,1619.9,1.6831]
[1744260472705,4.44282,1620.1,1620.0,2.82333]
[1744260472901,1.23511,1620.0,1619.9,1.5883]
[1744260473102,1.23511,1619.9,1619.8,1.23515]
[1744260473301,1.23511,1619.9,1619.8,2.82345]
[1744260473602,4.44291,1619.9,1619.8,2.82345]
[1744260474000,4.44291,1619.9,1619.8,1.5883]
[1744260474199,8.66388409,1620.0,1619.9,1.23511]
[1744260474602,1.23511,1619.9,1619.8,2.82342]
[1744260475312,8.66390409,1620.0,1619.9,1.23511]
[1744260475610,1.23511,1619.9,1619.8,2.82342]
[1744260476112,8.66389409,1620.0,1619.9,1.23511]
[1744260476306,5.83399409,1620.0,1619.9,2.84311]
[1744260476506,7.06902409,1620.0,1619.9,2.84311]
[1744260476706,5.83399409,1620.0,1619.9,2.84311]
[1744260476906,7.06902409,1620.0,1619.9,2.84311]
[1744260477616,1.23526,1619.8,1619.7,1.23521]
[1744260477814,1.23511,1619.9,1619.8,1.23518]
[1744260478215,2.86151,1619.9,1619.8,2.84318]
[1744260478404,1.23526,1619.8,1619.7,1.23521]
[1744260478610,4.40556,1619.8,1619.7,1.23521]
[1744260479618,1.6298,1619.8,1619.7,1.23521]
[1744260479810,2.86498,1619.8,1619.7,2.78961]
[1744260480011,4.40548,1619.8,1619.7,2.78961]
[1744260480212,1.23526,1619.7,1619.6,5.61928]
[1744260480420,2.77576,1619.7,1619.6,5.61928]
[1744260480605,2.77576,1619.7,1619.6,2.78968]
[1744260480810,1.23534,1619.6,1619.5,0.00928591]
[1744260481012,2.77584,1619.6,1619.5,0.00928591]
[1744260482316,4.26864,1619.6,1619.5,0.00928591]
[1744260483017,10.10263409,1619.6,1619.5,0.00928591]
[1744260483623,15.10263409,1619.6,1619.5,0.00928591]
[1744260484809,1.23557,1619.3,1619.2,40.8]
[1744260485017,1.23579,1619.0,1618.9,1.23581]
[1744260485213,1.23579,1619.0,1618.9,2.81761]
[1744260485414,3.1101,1619.2,1618.9,42.3818]
[1744260485615,4.34576,1619.2,1619.1,1.23572]
[1744260486512,1.23572,1619.1,1619.0,0.00928591]
[1744260486722,1.23572,1619.1,1619.0,1.24507591]
[1744260487315,2.82192,1619.1,1619.0,1.24507591]
[1744260487516,2.82192,1619.1,1619.0,2.82687591]
[1744260487921,2.82192,1619.1,1619.0,1.59108591]
[1744260489716,2.82192,1619.1,1619.0,2.82687591]
[1744260490221,1.23572,1619.1,1619.0,2.82687591]
[1744260490421,1.23572,1619.1,1619.0,2.82682591]
[1744260491119,1.23572,1619.1,1619.0,1.59108591]
[1744260491424,2.87112,1619.1,1619.0,1.59108591]
[1744260492123,2.87112,1619.1,1619.0,2.82687591]
[1744260493625,2.87112,1619.1,1619.0,1.59108591]
[1744260494025,2.87112,1619.1,1619.0,0.00928591]
[1744260494823,9.38812,1619.1,1619.0,0.00928591]
[1744260495022,13.77212,1619.1,1619.0,0.00928591]
[1744260495723,19.60611409,1619.1,1619.0,0.00928591]
[1744260496121,14.60611409,1619.1,1619.0,0.00928591]
[1744260498127,14.60611409,1619.1,1619.0,1.24507591]
[1744260498128,8.70511409,1619.1,1619.0,1.24507591]
[1744260498328,8.04238065,1619.2,1619.1,1.23572]
[1744260498629,4.83458065,1619.2,1619.1,1.23572]
[1744260498824,4.83458065,1619.2,1619.1,7.82162]
[1744260499221,4.83458065,1619.2,1619.1,17.20662]
[1744260500737,6.07022065,1619.2,1619.1,5.0]
[1744260501230,7.63182065,1619.2,1619.1,5.0]
[1744260501631,1.23572,1619.1,1619.0,1.55628591]
[1744260501832,1.23572,1619.1,1619.0,2.79201591]
[1744260502934,7.63187065,1619.2,1619.1,1.23572]
[1744260503126,7.63187065,1619.2,1619.1,2.81132]
[1744260503636,6.07027065,1619.2,1619.1,2.81132]
[1744260503834,6.07027065,1619.2,1619.1,1.5756]
[1744260504035,2.78889,1619.2,1619.1,1.5756]
[1744260505339,2.78889,1619.2,1619.1,2.81132]
[1744260506739,2.78889,1619.2,1619.1,1.5756]
[1744260507437,2.78889,1619.2,1619.1,2.81132]
[1744260508740,1.23569,1619.2,1619.1,2.81132]
[1744260508935,6.09082,1619.3,1619.2,1.23564]
[1744260509134,6.09082,1619.3,1619.2,2.78824]
[1744260510041,7.72952,1619.3,1619.2,2.78824]
[1744260514342,1.23572,1619.1,1619.0,0.00928591]
[1744260514540,4.44352,1619.1,1619.0,0.00928591]
[1744260514735,6.09832,1619.1,1619.0,0.00928591]
[1744260517744,13.49931409,1619.1,1619.0,0.00928591]
[1744260518242,11.93231409,1619.1,1619.0,0.00928591]
[1744260518443,10.27751409,1619.1,1619.0,1.24507591]
[1744260518840,11.82051409,1619.1,1619.0,1.24507591]
[1744260519347,10.27751409,1619.1,1619.0,1.24507591]
[1744260519746,10.27751409,1619.1,1619.0,4.42167591]
[1744260519950,5.83399409,1619.1,1619.0,4.42167591]
[1744260520546,5.83399409,1619.1,1619.0,6.05687591]
[1744260520732,7.06971409,1619.1,1619.0,6.05687591]
[1744260521348,5.83399409,1619.1,1619.0,6.05687591]
[1744260521548,7.06971409,1619.1,1619.0,6.05687591]
[1744260521950,5.83399409,1619.1,1619.0,6.05687591]
[1744260522249,7.06971409,1619.1,1619.0,6.05687591]
[1744260522451,5.83399409,1619.1,1619.0,6.05687591]
[1744260522647,7.06971409,1619.1,1619.0,6.05687591]
[1744260523349,7.06971409,1619.1,1619.0,4.55217591]
[1744260523541,1.23572,1619.1,1619.0,4.55217591]
[1744260525753,1.23572,1619.1,1619.0,3.31638591]
[1744260526344,1.23572,1619.1,1619.0,4.55217591]
[1744260526753,1.23572,1619.1,1619.0,3.31638591]
[1744260527249,4.44352,1619.1,1619.0,1.68118591]
[1744260527451,4.44352,1619.1,1619.0,0.00928591]
[1744260527839,10.20498797,1619.1,1619.0,0.00928591]
[1744260528051,11.72768797,1619.1,1619.0,0.00928591]
[1744260528244,13.36728797,1619.1,1619.0,0.00928591]
[1744260529952,1.2361,1618.6,1618.5,51.72706768]
[1744260530148,4.44383,1618.8,1618.7,1.23602]
[1744260530547,3.2078,1618.8,1618.7,1.23602]
[1744260530759,4.44375,1618.8,1618.7,2.85232]
[1744260531043,3.2078,1618.8,1618.7,4.49612]
[1744260531248,4.44375,1618.8,1618.7,4.49612]
[1744260531547,1.23595,1618.8,1618.7,4.49612]
[1744260533257,0.00928591,1618.9,1618.8,1.23595]
[1744260533554,0.00928591,1618.9,1618.8,2.75475]
[1744260534955,1.24515591,1618.9,1618.8,2.75475]
[1744260535450,0.00928591,1618.9,1618.8,2.75475]
[1744260536555,0.00928591,1618.9,1618.8,7.75475]
[1744260537649,1.24515591,1618.9,1618.8,7.75475]
[1744260538549,4.37925591,1618.9,1618.8,7.75475]
[1744260538857,4.37925591,1618.9,1618.8,2.75475]
[1744260539760,1.23595,1618.8,1618.7,1.6163]
[1744260540056,2.91305,1618.8,1618.7,2.85232]
[1744260540361,1.23602,1618.7,1618.6,2.88065591]
[1744260540560,2.91312,1618.7,1618.6,2.88065591]
[1744260541152,2.91312,1618.7,1618.6,0.00928591]
[1744260541353,2.91312,1618.7,1618.6,1.24538591]
[1744260541552,2.91312,1618.7,1618.6,2.88068591]
[1744260541858,1.6771,1618.7,1618.6,2.88068591]
[1744260542052,7.45908,1618.9,1618.6,7.94264591]
[1744260542353,0.00928591,1618.9,1618.8,1.23595]
[1744260542659,7.2884579,1618.9,1618.8,2.81685]
[1744260545655,6.6689579,1618.9,1618.8,2.81685]
[1744260545863,6.6689579,1618.9,1618.8,6.02465]
[1744260546563,5.36116608,1618.9,1618.8,16.02465]
[1744260546764,9.53236516,1619.1,1619.0,1.23579]
[1744260546957,8.19061516,1619.3,1619.2,1.23564]
[1744260547358,8.19061516,1619.3,1619.2,4.44344]
[1744260547556,8.19061516,1619.3,1619.2,6.00054]
[1744260548050,8.19061516,1619.3,1619.2,6.5023135]
[1744260548250,9.42618516,1619.3,1619.2,6.23564]
[1744260548553,12.68948516,1619.3,1619.2,6.23564]
[1744260549559,11.45391516,1619.3,1619.2,6.23564]
[1744260549863,12.68948516,1619.3,1619.2,6.23564]
[1744260550458,4.49887,1619.3,1619.2,36.26060047]
[1744260551059,4.73708591,1619.4,1619.2,35.02496047]
[1744260551363,0.00928591,1619.4,1619.3,2.78717]
[1744260551562,0.00928591,1619.4,1619.3,6.02857]
[1744260552852,0.00928591,1619.4,1619.3,18.61837]
[1744260553164,0.00928591,1619.4,1619.3,34.12893107]
[1744260553758,5.91e-06,1619.4,1619.3,74.92893107]
[1744260553959,5.91e-06,1619.4,1619.3,75.54653107]
[1744260554560,5.91e-06,1619.4,1619.3,71.72113107]
[1744260554766,5.91e-06,1619.4,1619.3,79.92893107]
[1744260555667,5.91e-06,1619.4,1619.3,80.5445102]
[1744260555869,5.91e-06,1619.4,1619.3,84.9265102]
[1744260557470,4.7353,1619.9,1619.8,1.23518]
[1744260558672,1.5275,1619.9,1619.8,1.23518]
[1744260559669,2.76261,1619.9,1619.8,1.23518]
[1744260560070,1.23518,1619.8,1619.7,1.24448591]
[1744260560269,2.89818,1619.8,1619.7,1.24448591]
[1744260560671,2.89818,1619.8,1619.7,42.04448591]
[1744260560973,1.663,1619.8,1619.7,42.04448591]
[1744260561771,1.663,1619.8,1619.7,43.67558591]
[1744260562865,2.89818,1619.8,1619.7,42.04448591]
[1744260563064,1.663,1619.8,1619.7,43.67558591]
[1744260563270,2.89818,1619.8,1619.7,43.67558591]
[1744260563777,1.663,1619.8,1619.7,43.67558591]
[1744260565666,2.89818,1619.8,1619.7,43.67558591]
[1744260565872,1.663,1619.8,1619.7,43.67558591]
[1744260566672,2.89818,1619.8,1619.7,43.67558591]
[1744260567066,1.663,1619.8,1619.7,43.67558591]
[1744260567266,2.89818,1619.8,1619.7,43.67558591]
[1744260567463,1.663,1619.8,1619.7,43.67558591]
[1744260568566,2.89818,1619.8,1619.7,42.04448591]
[1744260569875,1.663,1619.8,1619.7,42.04448591]
[1744260570070,2.89818,1619.8,1619.7,43.64228591]
[1744260570376,1.663,1619.8,1619.7,43.64228591]
[1744260571963,2.89818,1619.8,1619.7,43.64228591]
[1744260572368,1.663,1619.8,1619.7,43.64228591]
[1744260573275,2.89818,1619.8,1619.7,43.64228591]
[1744260575081,9.37246,1620.0,1619.9,1.23511]
[1744260575082,3.197,1620.0,1619.9,1.23511]
[1744260576280,3.197,1620.0,1619.9,42.03511]
[1744260576479,3.197,1620.0,1619.9,43.62201]
[1744260577478,4.8267,1620.0,1619.9,43.62201]
[1744260578173,10.27673409,1620.2,1620.1,1.23496]
[1744260578374,9.04179409,1620.2,1620.1,1.23496]
[1744260578677,9.04179409,1620.2,1620.1,2.82186]
[1744260578873,3.2078,1620.2,1620.1,2.82186]
[1744260579078,3.2078,1620.2,1620.1,6.00216]
[1744260579480,1.6297,1620.3,1620.2,1.23488]
[1744260579682,1.6297,1620.3,1620.2,2.83618]
[1744260579871,1.6338,1620.4,1620.3,1.2348]
[1744260580067,1.5655,1620.6,1620.5,1.23465]
[1744260580274,3.1822,1620.6,1620.5,1.23465]
[1744260580478,2.85127,1620.6,1620.5,1.23465]
[1744260580678,2.85127,1620.6,1620.5,2.83595]
[1744260580878,1.6167,1620.6,1620.5,2.83595]
[1744260581485,1.23465,1620.5,1620.4,1.6766]
[1744260581673,4.7032,1620.6,1620.2,9.1375]
[1744260581868,4.9116,1620.5,1620.2,1.6013]
[1744260582077,1.23475,1620.4,1620.3,40.8]
[1744260582273,4.9116,1620.5,1620.3,40.8]
[1744260582483,6.14632,1620.5,1620.4,1.23473]
[1744260582881,1.23473,1620.4,1620.3,43.69646]
[1744260583371,1.23473,1620.4,1620.3,42.03476]
[1744260583577,1.23473,1620.4,1620.3,40.8]
[1744260584783,1.2348,1620.3,1620.2,9.61567974]
[1744260584979,6.0916,1620.3,1620.2,9.61567974]
[1744260585175,11.0916,1620.3,1620.2,9.61567974]
[1744260585378,6.0916,1620.3,1620.2,9.61567974]
[1744260585780,1.23488,1620.2,1620.1,1.23494]
[1744260586079,1.23503,1620.0,1619.9,10.85073974]
[1744260586388,6.06388,1620.1,1620.0,1.23503]
[1744260586888,1.23503,1620.0,1619.9,50.41567974]
[1744260587275,2.88403,1620.0,1619.9,50.41567974]
[1744260587990,2.88403,1620.0,1619.9,10.85078974]
[1744260588280,1.23499,1620.1,1620.0,1.23503]
[1744260588584,2.89439,1620.1,1620.0,40.8]
[1744260588883,2.89439,1620.1,1620.0,42.03503]
[1744260589083,2.89439,1620.1,1620.0,1.6104]
[1744260589685,7.76379,1620.1,1620.0,1.6104]
[1744260589887,6.5288,1620.1,1619.8,1.23512]
[1744260590188,1.23506,1620.0,1619.9,1.23504]
[1744260591691,1.23511,1620.0,1619.9,1.23509]
[1744260593178,7.7638,1620.1,1620.0,1.23503]
[1744260593382,7.76381,1620.1,1620.0,1.23503]
[1744260593783,6.10436,1620.1,1620.0,1.23503]
[1744260593984,6.10436,1620.1,1620.0,2.80703]
[1744260594284,6.10436,1620.1,1620.0,4.43623]
[1744260594887,6.10436,1620.1,1620.0,1.6292]
[1744260595288,6.10436,1620.1,1620.0,2.86423]
[1744260595482,4.8694,1620.1,1620.0,2.86423]
[1744260595688,6.10436,1620.1,1620.0,12.47990974]
[1744260596496,6.10436,1620.1,1620.0,11.24487974]
[1744260596794,6.10436,1620.1,1620.0,9.61567974]
[1744260597091,6.10436,1620.1,1620.0,10.85070974]
[1744260597887,3.2078,1620.1,1620.0,12.41130974]
[1744260598087,4.44276,1620.1,1620.0,12.41130974]
[1744260598301,3.2078,1620.1,1620.0,14.06000974]
[1744260600093,4.44276,1620.1,1620.0,14.06000974]
[1744260600388,4.44276,1620.1,1620.0,12.41130974]
[1744260600588,1.23496,1620.1,1620.0,11.17627974]
[1744260600794,1.6634,1620.1,1620.0,12.41130974]
[1744260601095,1.23493,1620.2,1620.1,1.23496]
[1744260601396,2.89833,1620.2,1620.1,2.87876]
[1744260601793,1.23493,1620.2,1620.1,2.87876]
[1744260601994,7.82217,1620.3,1620.2,1.23488]
[1744260602195,7.82217,1620.3,1620.2,2.87868]
[1744260602396,4.61437,1620.3,1620.2,2.87868]
[1744260602898,2.95057,1620.3,1620.2,2.87868]
[1744260603290,1.7157,1620.3,1620.2,2.87868]
[1744260603491,8.67890409,1620.5,1620.4,1.23473]
[1744260603685,11.88670409,1620.5,1620.4,1.23473]
[1744260604089,8.67890409,1620.5,1620.4,1.23473]
[1744260604294,1.23473,1620.4,1620.3,2.95204]
[1744260606196,1.23472,1620.5,1620.4,1.23473]
[1744260606502,1.23472,1620.5,1620.4,2.95203]
[1744260606686,1.2348,1620.3,1620.2,14.9939689]
[1744260606890,1.2348,1620.3,1620.2,16.2288489]
[1744260607096,1.2348,1620.3,1620.2,17.8947489]
[1744260607297,3.1821,1620.3,1620.2,17.8947489]
[1744260607597,7.6247,1620.3,1620.2,14.9939689]
[1744260607900,4.4169,1620.3,1620.2,14.9939689]
[1744260608092,4.4169,1620.3,1620.2,16.6598689]
[1744260608294,4.4169,1620.3,1620.2,16.08941962]
[1744260608497,4.4169,1620.3,1620.2,17.32429962]
[1744260609401,2.8207,1620.3,1620.2,17.32429962]
[1744260609595,1.2348,1620.3,1620.2,17.32429962]
[1744260610089,2.79,1620.3,1620.2,17.32429962]
[1744260611099,1.2348,1620.3,1620.2,17.32429962]
[1744260611406,2.79,1620.3,1620.2,17.32429962]
[1744260611606,1.2348,1620.3,1620.2,17.32429962]
[1744260611804,4.4426,1620.3,1620.2,16.08941962]
[1744260612104,5.9978,1620.3,1620.2,11.30053448]
[1744260612301,5.9978,1620.3,1620.2,9.63463448]
[1744260614507,11.83179409,1620.3,1620.2,9.63463448]
[1744260614707,1.23496,1620.1,1620.0,12.46032448]
[1744260615694,1.23491,1620.2,1620.1,1.2349]
[1744260615900,10.27662409,1620.3,1620.2,1.23488]
[1744260616207,1.23488,1620.2,1620.1,6.094]
[1744260616506,1.23488,1620.2,1620.1,1.6133]
[1744260616707,1.23488,1620.2,1620.1,2.84826]
[1744260616903,1.23488,1620.2,1620.1,1.6133]
[1744260617306,1.23496,1620.1,1620.0,9.63463448]
[1744260617604,2.95246,1620.1,1620.0,15.65854962]
[1744260617793,1.7175,1620.1,1620.0,15.65854962]
[1744260618108,2.95246,1620.1,1620.0,15.65854962]
[1744260618401,1.23495,1620.2,1620.0,14.42351962]
[1744260618606,11.85579409,1620.3,1620.2,1.23488]
[1744260619007,10.27669409,1620.3,1620.2,1.23488]
[1744260619308,9.04179409,1620.3,1620.2,1.23488]
[1744260619601,5.83399409,1620.3,1620.2,4.36038]
[1744260620307,1.23478,1620.4,1620.3,1.2348]
[1744260620815,2.8275,1620.5,1620.4,1.23473]
[1744260621009,1.2347,1620.5,1620.4,1.23473]
[1744260621306,7.58343,1620.6,1620.5,1.23465]
[1744260621506,4.44243,1620.6,1620.5,1.23465]
[1744260621701,3.2078,1620.6,1620.5,1.23465]
[1744260621907,1.23456,1620.7,1620.6,1.23457]
[1744260623006,1.23457,1620.6,1620.5,4.55075697]
[1744260623410,1.23457,1620.6,1620.5,1.72165697]
[1744260623610,1.23457,1620.6,1620.5,0.00925697]